fUSD/lending_fUSD_20250321
["ID","MTS","AMOUNT","RATE_DAILY","PERIOD"]
[356486629,1742520646211,-29.88482154,0.00012,2]
[356486630,1742520646297,-647.56363379,0.00012,2]
[356486631,1742520646310,-36771.06411898,0.00012,2]
[356486633,1742520785528,-161.44191272,0.0001184,2]
[356486636,1742520990482,152.0,0.00031477,120]
[356486637,1742521409915,-2250.200874,0.00011601,2]
[356486638,1742521409937,-3055.62993612,0.0001166,2]
[356486639,1742521409958,-647.49,0.0001176,2]
[356486640,1742521409981,-150.0,0.00011802,2]
[356486641,1742521410001,-150.0,0.00011867,2]
[356486642,1742521410022,-153.35011964,0.00011899,2]
[356486643,1742521410042,-446.19734849,0.00011932,2]
[356486644,1742521410063,-500.0,0.00011973,2]
[356486645,1742521410082,-150.0,0.00011999,2]
[356486646,1742521410103,-267760.13172175,0.00012,2]
[356486648,1742521615249,157.93644,0.0001688,17]
[356486649,1742521615333,157.93645,0.0001938,22]
[356486658,1742521832121,-157.93644,0.0001188,6]
[356486659,1742521832130,-120.98497707,0.00011889,2]
[356486660,1742521832192,-29.01502293,0.00011889,2]
[356486661,1742521832202,-300.0,0.00011899,2]
[356486662,1742521832211,-809.5302,0.000119,2]
[356486663,1742521832220,-790.25477707,0.000119,2]
[356486664,1742521832321,-500.0,0.000119,2]
[356486822,1742521837997,-1398.01542293,0.000119,2]
[356486824,1742521838006,-155.26666598,0.00011973,2]
[356486825,1742521838016,-20466.26053025,0.00012,2]
[356486826,1742521838067,-419.229999,0.00012,2]
[356486827,1742521838079,-101893.10131173,0.00012,2]
[356486828,1742521838193,-178675.16756676,0.00012,2]
[356486829,1742521838261,-5309.29293947,0.00012,2]
[356486983,1742521840231,-2976.20822404,0.00012,2]
[356486986,1742521840243,-3583.06796825,0.00012,2]
[356487005,1742521840427,-435.38038272,0.00012,2]
[356487007,1742521840444,-1304.16334134,0.00012,2]
[356487112,1742521841694,-154.3501345,0.00012,2]
[356487494,1742521846136,-832.193085,0.00012,2]
[356487495,1742521846148,-784.9815,0.00012,2]
[356487496,1742521846159,-1414.157248,0.00012,2]
[356487497,1742521846170,-578.3824,0.00012,2]
[356487498,1742521846182,-903.7147203,0.00012,2]
[356487499,1742521846193,-472.95900005,0.00012,2]
[356487500,1742521846204,-778.804,0.00012,2]
[356487501,1742521846216,-4659.39928449,0.00012,2]
[356487502,1742521846227,-12738.6765,0.00012,2]
[356487503,1742521846295,-37264.84928621,0.00012,2]
[356487504,1742521846522,-193.0776759,0.00012,2]
[356487505,1742521846535,-31790.21771554,0.00012,2]
[356487506,1742521846545,-416.4508586,0.00012736,2]
[356487507,1742521846555,-2129.51164674,0.00012836,2]
[356487508,1742521846565,-305.0,0.00013064,2]
[356487509,1742521846575,-150.0,0.00013068,2]
[356487510,1742521846585,-150.0,0.00013068,2]
[356487511,1742521846597,-350.0,0.0001309,2]
[356487512,1742521846606,-350.0,0.0001309,2]
[356487513,1742521846615,-157.93645,0.0001438,11]
[356487514,1742521846625,-217.99459007,0.00015432,2]
[356487515,1742521846635,-416.45085856,0.00016221,2]
[356487516,1742521846644,-500.0,0.0001726,2]
[356487517,1742521846654,-1000.0,0.00017452,2]
[356487518,1742521846664,-2129.51164666,0.00017609,2]
[356487519,1742521846673,-159.25,0.000186,2]
[356487520,1742521846682,-2081.49,0.0001865,2]
[356487521,1742521846691,-915.89047582,0.00019,2]
[356487522,1742521846701,-150.0,0.00019165,2]
[356487523,1742521846710,-416.45085856,0.00019706,2]
[356487524,1742521846719,-255.19372824,0.000203,2]
[356487525,1742521846728,-250.0,0.00021,2]
[356487526,1742521846738,-287.18,0.0002121,2]
[356487527,1742521846747,-157.93645,0.0002188,27]
[356487528,1742521846756,-2129.51164666,0.00022381,2]
[356487529,1742521846916,-2000.0,0.00022948,4]
[356487530,1742521846927,-300.0,0.00023,2]
[356487531,1742521846938,-200.0,0.00023051,2]
[356487532,1742521846948,-416.45085856,0.00023192,2]
[356487533,1742521846958,-287.18,0.00023474,2]
[356487534,1742521846967,-155.85,0.00023482,2]
[356487535,1742521846977,-155.85,0.00023795,2]
[356487536,1742521846986,-348.11,0.00023836,2]
[356487537,1742521846996,-155.85,0.00024108,2]
[356487538,1742521847005,-155.85,0.00024421,2]
[356487539,1742521847016,-1000.0,0.00024658,2]
[356487540,1742521847026,-163.23,0.00024712,30]
[356487541,1742521847037,-151.39018209,0.00024773,2]
[356487542,1742521847046,-221.61352913,0.00024773,2]
[356487543,1742521847055,-81924.3547863,0.000248,2]
[356487544,1742521847064,-250.0,0.0002488,2]
[356487545,1742521847076,-9102.70608737,0.0002499,2]
[356487546,1742521847085,-350.0,0.00025,2]
[356487547,1742521847095,-287.18,0.00025738,2]
[356487548,1742521847104,-416.45085856,0.00026677,2]
[356487549,1742521847113,-311.03,0.00026849,2]
[356487550,1742521847122,-170.13,0.00026849,2]
[356487551,1742521847131,-207.0,0.00027,2]
[356487552,1742521847141,-400.0,0.00027,2]
[356487553,1742521847150,-2129.51164666,0.00027154,2]
[356487554,1742521847159,-2000.0,0.00027211,4]
[356487555,1742521847169,-1097.4,0.00027397,2]
[356487556,1742521847178,-1247.21218127,0.00027471,5]
[356487557,1742521847188,-207.0,0.00027671,2]
[356487558,1742521847197,-287.18,0.00028002,2]
[356487559,1742521847206,-200.0,0.000284,120]
[356487560,1742521847216,-207.0,0.00028767,2]
[356487561,1742521847225,-1097.4,0.00028767,2]
[356487562,1742521847234,-450.0,0.00029,2]
[356487563,1742521847243,-500.1323553,0.00029787,5]
[356487564,1742521847252,-9102.70608737,0.0002999,2]
[356487565,1742521847262,-500.0,0.0003,120]
[356487566,1742521847271,-505.87,0.0003,30]
[356487567,1742521847280,-1097.4,0.00030137,2]
[356487568,1742521847289,-416.45085856,0.00030162,2]
[356487569,1742521847299,-213.0,0.00030205,2]
[356487570,1742521847308,-1000.0,0.00030238,2]
[356487571,1742521847318,-273.48,0.00030238,120]
[356487572,1742521847327,-287.18,0.00030266,2]
[356487573,1742521847336,-151.0,0.0003049,7]
[356487574,1742521847346,-383.263516,0.0003049,7]
[356487575,1742521847359,-383.263516,0.0003049,7]
[356487576,1742521847368,-151.0,0.0003049,7]
[356487577,1742521847377,-151.0,0.0003049,7]
[356487578,1742521847386,-1245.011495,0.0003049,7]
[356487579,1742521847396,-440.729715,0.0003049,7]
[356487580,1742521847405,-1245.011495,0.0003049,7]
[356487581,1742521847414,-440.729715,0.0003049,7]
[356487582,1742521847423,-151.0,0.0003049,7]
[356487583,1742521847433,-151.0,0.0003049,7]
[356487584,1742521847442,-151.0,0.0003049,7]
[356487585,1742521847451,-151.831532,0.0003049,7]
[356487586,1742521847460,-151.0,0.0003049,7]
[356487587,1742521847469,-165.797466,0.0003049,7]
[356487588,1742521847479,-165.797466,0.0003049,7]
[356487589,1742521847488,-151.0,0.0003049,7]
[356487590,1742521847497,-151.0,0.0003049,7]
[356487591,1742521847506,-151.0,0.0003049,7]
[356487592,1742521847516,-151.0,0.0003049,7]
[356487593,1742521847525,-151.0,0.0003049,7]
[356487594,1742521847534,-151.0,0.0003049,7]
[356487595,1742521847543,-7841.09666552,0.0003049,2]
[356487596,1742521847562,-30254.16451058,0.0003049,2]
[356487597,1742521868145,-250.0,0.00024773,2]
[356487599,1742521921605,-166.7558,0.000119,2]
[356487600,1742521921626,-6.60815514,0.0001309,2]
[356487603,1742521994925,-150.0,0.00030472,120]
[356487604,1742522219504,3406.46423346,0.00031476,120]
[356487609,1742523032254,-343.39184486,0.0001309,2]
[356487610,1742523032264,-150.0,0.00013417,2]
[356487611,1742523032274,-150.0,0.00014399,2]
[356487612,1742523032283,-150.0,0.00016746,2]
[356487613,1742523032292,-1163.68,0.000247,2]
[356487614,1742523032302,-152.86468096,0.000249,2]
[356487615,1742523032311,-187.99447816,0.00025,2]
[356487616,1742523032321,-152.0,0.00026038,3]
[356487617,1742523032331,-165.21,0.00026849,2]
[356487618,1742523032340,-152.0,0.00027716,4]
[356487619,1742523032350,-244.39,0.00027872,2]
[356487620,1742523032359,-477.714089,0.00029247,2]
[356487621,1742523032369,-152.0,0.00029394,5]
[356487622,1742523032379,-250.04,0.00029754,2]
[356487623,1742523032388,-150.0,0.00029842,2]
[356487624,1742523032397,-276.18334477,0.00029849,2]
[356487625,1742523032409,-13.90665523,0.00029849,2]
[356487626,1742523032418,-1852.42,0.00029873,2]
[356487627,1742523032428,-163.23,0.00029896,30]
[356487628,1742523032437,-246.68727069,0.000299,5]
[356487629,1742523032448,-274.37,0.00029911,2]
[356487630,1742523032459,-150.0,0.00029916,7]
[356487631,1742523032469,-254.96,0.00029922,2]
[356487632,1742523032479,-218.78,0.00029928,120]
[356487633,1742523032489,-250.0,0.0002994,2]
[356487634,1742523032499,-438.96,0.00029979,2]
[356487635,1742523032509,-200.0,0.00029991,2]
[356487636,1742523032519,-165.0,0.0003,2]
[356487637,1742523032529,-1000.0,0.00030062,2]
[356487638,1742523032538,-153.0,0.00030062,2]
[356487639,1742523032548,-244.39,0.00030136,2]
[356487640,1742523032558,-21.12,0.00030472,120]
[356487641,1742523032568,-517.992,0.0003049,26]
[356487642,1742523032577,-5825.18407408,0.00030491,2]
[356487643,1742523032588,-1302.66754437,0.00030491,2]
[356487644,1742523032599,-1806.14137025,0.00030491,2]
[356487645,1742523032608,-540.617572,0.00030491,2]
[356487646,1742523032619,-556.26670477,0.00030491,2]
[356487647,1742523032642,-1415.13395623,0.00030491,2]
[356487648,1742523032652,-637.24482304,0.000305,7]
[356487649,1742523032663,-1264.74391061,0.000305,7]
[356487650,1742523032675,-5319.15229107,0.000305,7]
[356487651,1742523032686,-58777.90628708,0.000305,7]
[356487652,1742523032699,-151.0,0.000305,7]
[356487653,1742523032708,-151.0,0.000305,7]
[356487654,1742523032718,-151.0,0.000305,7]
[356487655,1742523032727,-151.0,0.000305,7]
[356487656,1742523032738,-151.0,0.000305,7]
[356487657,1742523032751,-151.0,0.000305,7]
[356487658,1742523032760,-224.376954,0.000305,7]
[356487659,1742523032769,-151.0,0.000305,7]
[356487660,1742523032778,-151.0,0.000305,7]
[356487661,1742523032789,-151.0,0.000305,7]
[356487662,1742523032798,-151.0,0.000305,7]
[356487663,1742523032808,-151.0,0.000305,7]
[356487664,1742523032818,-151.0,0.000305,7]
[356487665,1742523032827,-183.061648,0.000305,7]
[356487666,1742523032836,-151.0,0.000305,7]
[356487667,1742523032845,-151.0,0.000305,7]
[356487668,1742523032854,-151.0,0.000305,7]
[356487674,1742523033017,-3406.7491177,0.00030512,2]
[356487676,1742523033028,-1050.0132027,0.00030512,2]
[356487678,1742523033038,-381.8275446,0.00030533,4]
[356487680,1742523033048,-1005.62,0.00031,7]
[356487682,1742523033057,-500.0,0.00031,2]
[356487684,1742523033067,-152.0,0.00031073,6]
[356487686,1742523033077,-800.22,0.00031074,2]
[356487688,1742523033086,-452.83,0.00031074,2]
[356487690,1742523033096,-150.0,0.00031215,2]
[356487692,1742523033106,-150.0,0.00031217,2]
[356487694,1742523033116,-150.0,0.00031221,2]
[356487696,1742523033125,-150.0,0.00031222,2]
[356487698,1742523033135,-150.0,0.00031224,2]
[356487700,1742523033144,-150.0,0.00031226,2]
[356487702,1742523033154,-150.0,0.00031229,2]
[356487704,1742523033163,-150.0,0.0003123,2]
[356487705,1742523033173,-150.0,0.00031236,2]
[356487706,1742523033182,-150.0,0.00031239,2]
[356487707,1742523033193,-150.0,0.00031239,2]
[356487708,1742523033202,-150.0,0.00031241,2]
[356487709,1742523033211,-150.0,0.00031243,2]
[356487710,1742523033220,-150.0,0.00031243,2]
[356487711,1742523033230,-150.0,0.00031246,2]
[356487712,1742523033240,-150.0,0.00031248,2]
[356487713,1742523033250,-150.0,0.0003125,2]
[356487714,1742523033259,-150.0,0.00031252,2]
[356487715,1742523033268,-150.0,0.00031256,2]
[356487716,1742523033278,-150.0,0.00031257,2]
[356487717,1742523033287,-150.0,0.00031258,2]
[356487718,1742523033297,-1277.70698805,0.00031258,2]
[356487719,1742523033306,-150.0,0.00031259,2]
[356487720,1742523033315,-150.0,0.0003126,2]
[356487721,1742523033325,-150.0,0.00031264,2]
[356487722,1742523033334,-150.0,0.00031265,2]
[356487723,1742523033343,-150.0,0.00031267,2]
[356487724,1742523033352,-150.0,0.00031268,2]
[356487725,1742523033361,-150.0,0.00031271,2]
[356487726,1742523033371,-150.0,0.00031272,2]
[356487727,1742523033380,-150.0,0.00031273,2]
[356487728,1742523033389,-150.0,0.00031274,2]
[356487729,1742523033399,-150.0,0.00031276,2]
[356487730,1742523033408,-150.0,0.00031279,2]
[356487731,1742523033418,-150.0,0.00031282,2]
[356487732,1742523033428,-150.0,0.00031287,2]
[356487733,1742523033437,-150.0,0.00031289,2]
[356487734,1742523033449,-150.0,0.0003129,2]
[356487735,1742523033459,-150.0,0.00031291,2]
[356487736,1742523033468,-150.0,0.00031292,2]
[356487737,1742523033478,-150.0,0.00031303,2]
[356487738,1742523033488,-150.0,0.00031312,2]
[356487739,1742523033497,-150.0,0.00031318,2]
[356487740,1742523033507,-201.50392115,0.0003132,2]
[356487741,1742523033517,-150.0,0.0003132,2]
[356487742,1742523033526,-150.0,0.00031321,2]
[356487743,1742523033535,-150.0,0.00031326,2]
[356487744,1742523033546,-150.0,0.00031326,2]
[356487745,1742523033555,-150.0,0.00031327,2]
[356487746,1742523033566,-150.0,0.00031327,2]
[356487747,1742523033577,-150.0,0.0003133,2]
[356487748,1742523033586,-150.0,0.00031344,2]
[356487749,1742523033596,-150.0,0.00031345,2]
[356487750,1742523033605,-1000.0,0.00031346,2]
[356487751,1742523033614,-150.0,0.00031347,2]
[356487752,1742523033624,-150.0,0.00031351,2]
[356487753,1742523033633,-150.0,0.00031352,2]
[356487754,1742523033642,-150.0,0.00031357,2]
[356487755,1742523033652,-85133.6386,0.00031358,2]
[356487756,1742523033661,-370.6078,0.00031358,2]
[356487757,1742523033671,-150.0,0.00031361,2]
[356487758,1742523033680,-150.0,0.00031363,2]
[356487759,1742523033690,-150.0,0.00031363,2]
[356487760,1742523033699,-150.0,0.00031364,2]
[356487761,1742523033709,-1000.0,0.00031366,2]
[356487762,1742523033718,-869.02005713,0.00031366,3]
[356487763,1742523033727,-5499.4437863,0.00031366,2]
[356487764,1742523033739,-150.0,0.00031368,2]
[356487765,1742523033755,-200.0,0.00031369,5]
[356487766,1742523033764,-150.0,0.00031372,2]
[356487767,1742523033773,-150.0,0.00031372,2]
[356487768,1742523033782,-150.0,0.00031374,2]
[356487769,1742523033794,-34920.04640806,0.00031376,3]
[356487770,1742523033817,-280.53661199,0.00031376,3]
[356487771,1742523033838,-3056.17127599,0.00031376,3]
[356487773,1742523038160,-150.0,0.00031252,2]
[356487774,1742523038170,-150.0,0.00031277,2]
[356487775,1742523038180,-150.0,0.0003129,2]
[356487776,1742523038191,-150.0,0.00031338,2]
[356487777,1742523038201,-150.0,0.00031372,2]
[356487778,1742523038211,-50631.24570396,0.00031376,3]
[356487779,1742523038220,-222.0,0.00031376,2]
[356487780,1742523038230,-150.0,0.00031376,2]
[356487781,1742523038239,-277.00181541,0.00031376,2]
[356487782,1742523038247,-151.44793554,0.0003138,2]
[356487783,1742523038257,-150.0,0.00031381,2]
[356487784,1742523038267,-150.0,0.00031382,2]
[356487785,1742523038275,-150.0,0.0003139,2]
[356487786,1742523038285,-1000.0,0.00031392,2]
[356487787,1742523038295,-150.0,0.00031396,2]
[356487788,1742523038304,-150.0,0.00031397,2]
[356487789,1742523038315,-150.0,0.00031399,2]
[356487790,1742523038325,-500.0,0.000314,120]
[356487791,1742523038334,-150.0,0.00031402,2]
[356487792,1742523038344,-150.0,0.00031403,2]
[356487793,1742523038354,-150.0,0.00031405,2]
[356487794,1742523038364,-150.0,0.00031408,2]
[356487795,1742523038373,-150.0,0.00031411,2]
[356487796,1742523038383,-1000.0,0.00031413,2]
[356487797,1742523038392,-150.0,0.00031418,2]
[356487798,1742523038402,-150.0,0.00031419,2]
[356487799,1742523038412,-170.47263402,0.00031419,2]
[356487800,1742523038421,-150.0,0.00031422,2]
[356487801,1742523038430,-150.0,0.00031422,2]
[356487802,1742523038441,-150.0,0.00031423,2]
[356487803,1742523038451,-150.0,0.00031428,2]
[356487804,1742523038461,-150.0,0.00031431,2]
[356487805,1742523038471,-150.0,0.00031431,2]
[356487807,1742523038480,-150.0,0.00031433,2]
[356487809,1742523038489,-1054.16592056,0.00031436,2]
[356487811,1742523038498,-150.0,0.00031441,2]
[356487813,1742523038507,-150.0,0.00031442,2]
[356487815,1742523038516,-150.0,0.00031444,2]
[356487817,1742523038526,-150.0,0.00031447,2]
[356487819,1742523038535,-150.0,0.00031448,2]
[356487821,1742523038544,-150.0,0.00031451,2]
[356487823,1742523038553,-524.0,0.00031452,2]
[356487825,1742523038563,-570.0,0.00031452,2]
[356487827,1742523038572,-150.0,0.00031453,2]
[356487829,1742523038581,-151.0,0.00031458,7]
[356487831,1742523038590,-151.0,0.00031458,7]
[356487833,1742523038599,-151.0,0.00031458,7]
[356487835,1742523038608,-150.0,0.00031459,2]
[356487837,1742523038618,-150.0,0.00031461,2]
[356487839,1742523038627,-150.0,0.00031465,2]
[356487841,1742523038636,-150.0,0.00031465,2]
[356487843,1742523038645,-150.0,0.00031465,2]
[356487845,1742523038655,-8457.77935833,0.00031465,2]
[356487847,1742523038665,-5248.88663218,0.00031466,2]
[356487871,1742523038889,-589.97551441,0.00031466,2]
[356487873,1742523038903,-844.41899639,0.00031466,2]
[356488118,1742523040621,-576.39087237,0.00031466,2]
[356488630,1742523043603,-23973.95721219,0.00031466,2]
[356488631,1742523044165,-797.70304762,0.00031466,2]
[356488632,1742523044177,-514.86105542,0.00031466,2]
[356488636,1742523046264,-25493.49491244,0.00031466,2]
[356488637,1742523046369,-341.1630006,0.00031466,2]
[356488638,1742523046380,-60028.05977338,0.00031466,2]
[356488639,1742523046389,-29043.8178843,0.00031466,2]
[356488640,1742523046398,-150.0,0.00031466,2]
[356488641,1742523046407,-150.0,0.00031466,2]
[356488642,1742523046417,-191.53181,0.00031466,7]
[356488643,1742523046427,-191.53181,0.00031466,7]
[356488644,1742523046437,-151.0,0.00031466,7]
[356488645,1742523046448,-151.0,0.00031466,7]
[356488646,1742523046457,-151.0,0.00031466,7]
[356488647,1742523046466,-151.0,0.00031466,7]
[356488648,1742523046476,-151.0,0.00031466,7]
[356488649,1742523046486,-151.0,0.00031466,7]
[356488650,1742523046495,-151.0,0.00031466,7]
[356488651,1742523046505,-1055.091079,0.00031466,7]
[356488652,1742523046514,-151.0,0.00031466,7]
[356488653,1742523046523,-1055.091079,0.00031466,7]
[356488654,1742523046532,-151.0,0.00031466,7]
[356488655,1742523046541,-151.0,0.00031466,7]
[356488656,1742523046550,-151.0,0.00031466,7]
[356488657,1742523046559,-159.639592,0.00031466,7]
[356488658,1742523046568,-299.285309,0.00031466,7]
[356488659,1742523046577,-159.639592,0.00031466,7]
[356488660,1742523046586,-151.0,0.00031466,7]
[356488661,1742523046596,-299.285309,0.00031466,7]
[356488662,1742523046605,-151.0,0.00031466,7]
[356488663,1742523046614,-151.0,0.00031466,7]
[356488664,1742523046623,-151.0,0.00031466,7]
[356488665,1742523046632,-151.0,0.00031466,7]
[356488666,1742523046641,-151.0,0.00031466,7]
[356488667,1742523046650,-151.0,0.00031466,7]
[356488668,1742523046660,-398.712821,0.00031466,7]
[356488669,1742523046669,-398.712821,0.00031466,7]
[356488670,1742523046678,-151.34506,0.00031466,7]
[356488671,1742523046687,-10000.0,0.00031466,7]
[356488673,1742523046696,-10000.0,0.00031466,7]
[356488675,1742523046706,-151.0,0.00031466,7]
[356488677,1742523046716,-10000.0,0.00031466,7]
[356488679,1742523046725,-343.5415,0.00031466,7]
[356488680,1742523046734,-176.216498,0.00031466,7]
[356488681,1742523046744,-396.656744,0.00031466,7]
[356488682,1742523046756,-151.0,0.00031466,7]
[356488683,1742523046766,-4102.49969,0.00031466,7]
[356488684,1742523046775,-343.5415,0.00031466,7]
[356488685,1742523046785,-151.0,0.00031466,7]
[356488686,1742523046796,-151.0,0.00031466,7]
[356488687,1742523046805,-176.216498,0.00031466,7]
[356488688,1742523046815,-396.656744,0.00031466,7]
[356488689,1742523046826,-151.0,0.00031466,7]
[356488690,1742523046835,-151.227767,0.00031466,7]
[356488691,1742523046844,-151.0,0.00031466,7]
[356488692,1742523046853,-344.937165,0.00031466,7]
[356488693,1742523046862,-344.937165,0.00031466,7]
[356488694,1742523046871,-151.0,0.00031466,7]
[356488695,1742523046880,-151.0,0.00031466,7]
[356488696,1742523046891,-151.0,0.00031466,7]
[356488697,1742523046899,-298.65377,0.00031466,7]
[356488698,1742523046909,-298.65377,0.00031466,7]
[356488699,1742523046918,-151.0,0.00031466,7]
[356488700,1742523046927,-509.071367,0.00031466,7]
[356488701,1742523046936,-151.0,0.00031466,7]
[356488702,1742523046944,-509.071367,0.00031466,7]
[356488703,1742523046954,-8457.77935833,0.00031467,2]
[356488704,1742523046963,-9681.27262811,0.00031467,2]
[356488705,1742523046972,-151.0,0.00031467,7]
[356488706,1742523046981,-192.112907,0.00031467,7]
[356488707,1742523046990,-151.0,0.00031467,7]
[356488708,1742523046999,-151.0,0.00031467,7]
[356488709,1742523047009,-151.0,0.00031467,7]
[356488710,1742523047019,-159.845032,0.00031467,7]
[356488711,1742523047029,-151.748027,0.00031467,7]
[356488712,1742523047038,-151.717271,0.00031467,7]
[356488713,1742523047048,-151.450062,0.00031467,7]
[356488714,1742523047057,-151.235699,0.00031467,7]
[356488715,1742523047066,-197.30448,0.00031467,7]
[356488716,1742523047076,-151.0,0.00031467,7]
[356488717,1742523047086,-197.30448,0.00031467,7]
[356488718,1742523047096,-151.0,0.00031467,7]
[356488719,1742523047105,-151.0,0.00031467,7]
[356488720,1742523047114,-150.0,0.00031467,2]
[356488721,1742523047124,-150.0,0.00031467,2]
[356488722,1742523047132,-302.414039,0.00031467,7]
[356488723,1742523047141,-302.414039,0.00031467,7]
[356488724,1742523047150,-191.53181,0.00031467,7]
[356488725,1742523047160,-152.527679,0.00031467,7]
[356488726,1742523047170,-152.527679,0.00031467,7]
[356488727,1742523047178,-191.53181,0.00031467,7]
[356488728,1742523047187,-152.527679,0.00031467,7]
[356488729,1742523047197,-152.527679,0.00031467,7]
[356488730,1742523047206,-151.0,0.00031467,7]
[356488731,1742523047215,-151.0,0.00031467,7]
[356488732,1742523047224,-151.0,0.00031467,7]
[356488733,1742523047234,-151.0,0.00031467,7]
[356488734,1742523047243,-151.0,0.00031467,7]
[356488735,1742523047252,-151.0,0.00031467,7]
[356488736,1742523047261,-151.0,0.00031467,7]
[356488737,1742523047271,-1055.091079,0.00031467,7]
[356488738,1742523047280,-1055.091079,0.00031467,7]
[356488739,1742523047289,-159.639592,0.00031467,7]
[356488740,1742523047299,-159.639592,0.00031467,7]
[356488741,1742523047308,-151.0,0.00031467,7]
[356488742,1742523047317,-151.0,0.00031467,7]
[356488743,1742523047326,-151.0,0.00031467,7]
[356488744,1742523047336,-151.0,0.00031468,7]
[356488745,1742523047345,-151.0,0.00031468,7]
[356488746,1742523047353,-223.833554,0.00031468,7]
[356488747,1742523047363,-151.0,0.00031468,7]
[356488748,1742523047372,-151.0,0.00031468,7]
[356488749,1742523047381,-151.0,0.00031468,7]
[356488750,1742523047390,-151.0,0.00031468,7]
[356488751,1742523047399,-151.0,0.00031468,7]
[356488752,1742523047409,-197.30448,0.00031468,7]
[356488753,1742523047418,-151.546703,0.00031468,7]
[356488754,1742523047427,-197.30448,0.00031468,7]
[356488755,1742523047436,-151.0,0.00031468,7]
[356488756,1742523047446,-151.0,0.00031468,7]
[356488757,1742523047456,-151.0,0.00031468,7]
[356488758,1742523047466,-151.0,0.00031468,7]
[356488759,1742523047475,-151.0,0.00031468,7]
[356488760,1742523047484,-184.706875,0.00031468,7]
[356488761,1742523047493,-184.706875,0.00031468,7]
[356488762,1742523047502,-168.70008,0.00031468,7]
[356488763,1742523047513,-168.70008,0.00031468,7]
[356488764,1742523047523,-151.0,0.00031468,7]
[356488765,1742523047531,-168.70008,0.00031468,7]
[356488766,1742523047541,-168.70008,0.00031468,7]
[356488767,1742523047550,-1381.463705,0.00031468,7]
[356488768,1742523047559,-1120.510345,0.00031468,7]
[356488769,1742523047568,-1120.510345,0.00031468,7]
[356488770,1742523047578,-1120.510345,0.00031468,7]
[356488771,1742523047587,-1120.510345,0.00031468,7]
[356488772,1742523047597,-160.613278,0.00031468,7]
[356488773,1742523047606,-151.0,0.00031468,7]
[356488774,1742523047614,-151.0,0.00031468,7]
[356488775,1742523047624,-2734.70568,0.00031468,7]
[356488776,1742523047633,-2734.70568,0.00031468,7]
[356488777,1742523047643,-2734.70568,0.00031468,7]
[356488778,1742523047652,-2734.70568,0.00031468,7]
[356488779,1742523047661,-151.0,0.00031468,7]
[356488780,1742523047671,-151.0,0.00031468,7]
[356488781,1742523047681,-269.390248,0.00031468,7]
[356488782,1742523047690,-269.390248,0.00031468,7]
[356488783,1742523047700,-224.085242,0.00031468,7]
[356488784,1742523047710,-224.085242,0.00031468,7]
[356488785,1742523047720,-151.263727,0.00031468,7]
[356488786,1742523047730,-151.0,0.00031468,7]
[356488787,1742523047739,-151.0,0.00031468,7]
[356488788,1742523047753,-151.0,0.00031468,7]
[356488789,1742523047762,-151.0,0.00031468,7]
[356488790,1742523047772,-151.0,0.00031468,7]
[356488791,1742523047782,-347.907167,0.00031468,7]
[356488792,1742523047793,-347.907167,0.00031468,7]